fUST/lending_fUST_20241201
["ID","MTS","AMOUNT","RATE_DAILY","PERIOD"]
[343904594,1733019049714,-500.0,0.00026027,3]
[343904595,1733019049724,-500.0,0.00026027,3]
[343904596,1733019049735,-500.0,0.00026027,3]
[343904597,1733019049745,-500.0,0.00026027,3]
[343904598,1733019049754,-500.0,0.00026027,3]
[343904599,1733019049765,-500.0,0.00026027,3]
[343904600,1733019049777,-500.0,0.00026027,3]
[343904601,1733019049790,-500.0,0.00026027,3]
[343904602,1733019049800,-500.0,0.00026027,3]
[343904603,1733019049811,-1377.98,0.00026027,3]
[343904604,1733019049822,-511.36132834,0.00026027,2]
[343904605,1733019049832,-500.0,0.00026027,3]
[343904606,1733019049841,-500.0,0.00026027,3]
[343904607,1733019049852,-1292.72,0.00026027,3]
[343904608,1733019049862,-500.0,0.00026027,3]
[343904609,1733019049871,-1313.91,0.00026027,3]
[343904610,1733019049882,-500.0,0.00026027,3]
[343904611,1733019049891,-500.0,0.00026027,3]
[343904612,1733019049901,-500.0,0.00026027,3]
[343904613,1733019049912,-1140.13,0.00026027,3]
[343904614,1733019049921,-500.0,0.00026027,3]
[343904615,1733019049930,-500.0,0.00026301,3]
[343904616,1733019049939,-513.17781494,0.00026301,3]
[343904617,1733019050021,-500.0,0.00026301,3]
[343904618,1733019050031,-151.0,0.00026301,7]
[343904619,1733019050041,-500.0,0.00026301,3]
[343904620,1733019050054,-500.0,0.00026301,3]
[343904621,1733019050064,-500.0,0.00026301,3]
[343904622,1733019050074,-829.63,0.00026301,3]
[343904623,1733019050084,-151.0,0.00026301,7]
[343904624,1733019050094,-151.0,0.00026301,7]
[343904625,1733019050104,-500.0,0.00026301,3]
[343904626,1733019050114,-500.0,0.00026301,3]
[343904627,1733019050124,-500.0,0.00026301,3]
[343904628,1733019050134,-544.49,0.00026301,3]
[343904629,1733019050145,-641.96,0.00026301,3]
[343904630,1733019050155,-500.0,0.00026301,3]
[343904631,1733019050166,-500.0,0.00026301,3]
[343904632,1733019050179,-398.29147071,0.00026301,3]
[343904633,1733019050190,-500.0,0.00026301,3]
[343904634,1733019050201,-500.0,0.00026301,3]
[343904635,1733019050212,-500.0,0.00026301,3]
[343904636,1733019050223,-500.0,0.00026301,3]
[343904637,1733019050234,-599.0,0.00026301,3]
[343904638,1733019050245,-500.0,0.00026301,3]
[343904639,1733019050255,-664.83,0.00026301,3]
[343904640,1733019050267,-506.91124075,0.00026301,3]
[343904641,1733019050277,-500.0,0.00026301,3]
[343904642,1733019050288,-500.0,0.00026301,3]
[343904643,1733019050300,-500.0,0.00026301,3]
[343904644,1733019050311,-951.57,0.00026301,3]
[343904645,1733019050321,-716.35,0.00026301,3]
[343904646,1733019050331,-500.0,0.00026301,3]
[343904647,1733019050343,-500.0,0.00026301,3]
[343904648,1733019050354,-917.94,0.00026301,3]
[343904649,1733019050364,-500.0,0.00026301,3]
[343904650,1733019050375,-500.0,0.00026301,3]
[343904651,1733019050387,-500.0,0.00026301,3]
[343904652,1733019050397,-500.0,0.00026301,3]
[343904653,1733019050408,-508.52516832,0.00026301,3]
[343904654,1733019050419,-500.0,0.00026301,3]
[343904655,1733019050430,-500.0,0.00026301,3]
[343904656,1733019050441,-500.0,0.00026301,3]
[343904657,1733019050456,-500.0,0.00026301,3]
[343904658,1733019050467,-1377.98,0.00026301,3]
[343904659,1733019050478,-500.0,0.00026301,3]
[343904660,1733019050490,-500.0,0.00026301,3]
[343904661,1733019050501,-500.0,0.00026301,3]
[343904662,1733019050512,-1292.72,0.00026301,3]
[343904663,1733019050522,-500.0,0.00026301,3]
[343904664,1733019050532,-1313.91,0.00026301,3]
[343904665,1733019050542,-500.0,0.00026301,3]
[343904666,1733019050551,-500.0,0.00026301,3]
[343904667,1733019050562,-500.0,0.00026301,3]
[343904668,1733019050571,-1140.13,0.00026301,3]
[343904669,1733019050581,-500.0,0.00026301,3]
[343904670,1733019050591,-300.0,0.000265,2]
[343904671,1733019050601,-500.0,0.00026575,3]
[343904672,1733019050611,-500.0,0.00026575,3]
[343904673,1733019050620,-390.75686537,0.00026575,3]
[343904674,1733019050630,-500.0,0.00026575,3]
[343904675,1733019050639,-500.0,0.00026575,3]
[343904676,1733019050649,-829.63,0.00026575,3]
[343904677,1733019050659,-500.0,0.00026575,3]
[343904678,1733019050669,-500.0,0.00026575,3]
[343904679,1733019050679,-500.0,0.00026575,3]
[343904680,1733019050690,-544.49,0.00026575,3]
[343904681,1733019050699,-641.96,0.00026575,3]
[343904682,1733019050709,-500.0,0.00026575,3]
[343904683,1733019050719,-500.0,0.00026575,3]
[343904684,1733019050729,-500.0,0.00026575,3]
[343904685,1733019050738,-500.0,0.00026575,3]
[343904686,1733019050748,-500.0,0.00026575,3]
[343904687,1733019050758,-500.0,0.00026575,3]
[343904688,1733019050769,-599.0,0.00026575,3]
[343904689,1733019050786,-500.0,0.00026575,3]
[343904690,1733019050796,-664.83,0.00026575,3]
[343904691,1733019050806,-500.0,0.00026575,3]
[343904692,1733019050817,-500.0,0.00026575,3]
[343904693,1733019050828,-500.0,0.00026575,3]
[343904694,1733019050838,-951.57,0.00026575,3]
[343904695,1733019050848,-716.35,0.00026575,3]
[343904696,1733019050859,-500.0,0.00026575,3]
[343904697,1733019050869,-500.0,0.00026575,3]
[343904698,1733019050879,-917.94,0.00026575,3]
[343904699,1733019050889,-500.0,0.00026575,3]
[343904700,1733019050899,-500.0,0.00026575,3]
[343904701,1733019050912,-500.0,0.00026575,3]
[343904702,1733019050922,-500.0,0.00026575,3]
[343904703,1733019050933,-500.0,0.00026575,3]
[343904704,1733019050944,-500.0,0.00026575,3]
[343904705,1733019050954,-494.46300098,0.00026575,3]
[343904706,1733019050964,-500.0,0.00026575,3]
[343904707,1733019050975,-1377.98,0.00026575,3]
[343904708,1733019050985,-500.0,0.00026575,3]
[343904709,1733019050996,-500.0,0.00026575,3]
[343904710,1733019051007,-500.0,0.00026575,3]
[343904711,1733019051017,-1292.72,0.00026575,3]
[343904712,1733019051027,-500.0,0.00026575,3]
[343904713,1733019051038,-1313.91,0.00026575,3]
[343904714,1733019051048,-537.57619818,0.00026575,3]
[343904715,1733019051058,-500.0,0.00026575,3]
[343904716,1733019051069,-500.0,0.00026575,3]
[343904717,1733019051079,-1140.13,0.00026575,3]
[343904718,1733019051089,-500.0,0.00026575,3]
[343904719,1733019051100,-150.0,0.00026675,2]
[343904720,1733019051111,-2186.513,0.00026675,2]
[343904721,1733019051121,-739.95411236,0.00026675,2]
[343904722,1733019051135,-1651.44988764,0.00026675,2]
[343904723,1733019051146,-175.948,0.00026675,2]
[343904724,1733019051156,-517.97513038,0.00026689,7]
[343904725,1733019051166,-23905.77614403,0.000268,3]
[343904726,1733019051176,-151.0,0.000268,7]
[343904727,1733019051186,-452.28371912,0.00026849,3]
[343904728,1733019051195,-422.41310241,0.00026849,3]
[343904729,1733019051206,-500.0,0.00026849,3]
[343904730,1733019051216,-500.0,0.00026849,3]
[343904731,1733019051227,-829.63,0.00026849,3]
[343904732,1733019051238,-500.0,0.00026849,3]
[343904733,1733019051248,-500.0,0.00026849,3]
[343904734,1733019051259,-500.0,0.00026849,3]
[343904735,1733019051270,-544.49,0.00026849,3]
[343904736,1733019051281,-641.96,0.00026849,3]
[343904737,1733019051292,-500.0,0.00026849,3]
[343904738,1733019051305,-157.76863705,0.00026849,3]
[343904739,1733019051316,-500.0,0.00026849,3]
[343904740,1733019051327,-500.0,0.00026849,3]
[343904741,1733019051337,-500.0,0.00026849,3]
[343904742,1733019051348,-500.0,0.00026849,3]
[343904743,1733019051358,-599.0,0.00026849,3]
[343904744,1733019051368,-500.0,0.00026849,3]
[343904745,1733019051377,-664.83,0.00026849,3]
[343904746,1733019051387,-500.0,0.00026849,3]
[343904747,1733019051397,-500.0,0.00026849,3]
[343904748,1733019051407,-500.0,0.00026849,3]
[343904749,1733019051416,-951.57,0.00026849,3]
[343904750,1733019051425,-716.35,0.00026849,3]
[343904751,1733019051435,-500.0,0.00026849,3]
[343904752,1733019051445,-500.0,0.00026849,3]
[343904753,1733019051454,-917.94,0.00026849,3]
[343904754,1733019051463,-500.0,0.00026849,3]
[343904755,1733019051473,-500.0,0.00026849,3]
[343904756,1733019051483,-500.0,0.00026849,3]
[343904757,1733019051494,-500.0,0.00026849,3]
[343904758,1733019051505,-500.0,0.00026849,3]
[343904759,1733019051515,-500.0,0.00026849,3]
[343904760,1733019051526,-500.0,0.00026849,3]
[343904761,1733019051535,-1377.98,0.00026849,3]
[343904762,1733019051544,-500.0,0.00026849,3]
[343904763,1733019051554,-500.0,0.00026849,3]
[343904764,1733019051563,-273.63392141,0.00026849,3]
[343904765,1733019051573,-1292.72,0.00026849,3]
[343904766,1733019051583,-500.0,0.00026849,3]
[343904767,1733019051593,-1313.91,0.00026849,3]
[343904768,1733019051603,-471.44504035,0.00026849,3]
[343904769,1733019051612,-500.0,0.00026849,3]
[343904770,1733019051622,-1140.13,0.00026849,3]
[343904771,1733019051631,-500.0,0.00026849,3]
[343904772,1733019051641,-151.0,0.000269,17]
[343904773,1733019051651,-1152.0,0.00026958,2]
[343904774,1733019051735,-45544.19798246,0.00026978,2]
[343904775,1733019051744,-151.0,0.00026978,7]
[343904776,1733019051754,-151.0,0.00026978,7]
[343904777,1733019051764,-151.0,0.00026978,7]
[343904778,1733019051775,-151.0,0.00026978,7]
[343904779,1733019051787,-1460.15,0.000271,2]
[343904780,1733019051797,-151.0,0.00027123,7]
[343904781,1733019051808,-500.0,0.00027123,3]
[343904782,1733019051819,-500.0,0.00027123,3]
[343904783,1733019051830,-829.63,0.00027123,3]
[343904784,1733019051840,-500.0,0.00027123,3]
[343904785,1733019051851,-500.0,0.00027123,3]
[343904786,1733019051861,-500.0,0.00027123,3]
[343904787,1733019051871,-544.49,0.00027123,3]
[343904788,1733019051881,-641.96,0.00027123,3]
[343904789,1733019051891,-500.0,0.00027123,3]
[343904790,1733019051901,-500.0,0.00027123,3]
[343904791,1733019051913,-500.0,0.00027123,3]
[343904792,1733019051926,-284.97599948,0.00027123,3]
[343904793,1733019051937,-500.0,0.00027123,3]
[343904794,1733019051948,-599.0,0.00027123,3]
[343904795,1733019051959,-500.0,0.00027123,3]
[343904796,1733019051970,-664.83,0.00027123,3]
[343904797,1733019051982,-500.0,0.00027123,3]
[343904798,1733019051994,-453.72185449,0.00027123,3]
[343904799,1733019052005,-500.0,0.00027123,3]
[343904800,1733019052016,-951.57,0.00027123,3]
[343904801,1733019052027,-716.35,0.00027123,3]
[343904802,1733019052038,-500.0,0.00027123,3]
[343904803,1733019052049,-500.0,0.00027123,3]
[343904804,1733019052059,-917.94,0.00027123,3]
[343904805,1733019052069,-500.0,0.00027123,3]
[343904806,1733019052080,-500.0,0.00027123,3]
[343904807,1733019052090,-500.0,0.00027123,3]
[343904808,1733019052100,-500.0,0.00027123,3]
[343904809,1733019052111,-500.0,0.00027123,3]
[343904810,1733019052122,-500.0,0.00027123,3]
[343904811,1733019052134,-500.0,0.00027123,3]
[343904812,1733019052146,-500.0,0.00027123,3]
[343904813,1733019052158,-1377.98,0.00027123,3]
[343904814,1733019052171,-500.0,0.00027123,3]
[343904815,1733019052182,-1292.72,0.00027123,3]
[343904816,1733019052194,-500.0,0.00027123,3]
[343904817,1733019052206,-1313.91,0.00027123,3]
[343904818,1733019052219,-500.0,0.00027123,3]
[343904819,1733019052230,-1140.13,0.00027123,3]
[343904820,1733019052240,-500.0,0.00027123,3]
[343904821,1733019052252,-160.007867,0.00027139,2]
[343904822,1733019052263,-176.302447,0.00027139,2]
[343904823,1733019052274,-161.0,0.00027386,2]
[343904824,1733019052285,-151.0,0.00027397,7]
[343904825,1733019052297,-500.0,0.00027397,3]
[343904826,1733019052308,-500.0,0.00027397,3]
[343904827,1733019052319,-829.63,0.00027397,3]
[343904828,1733019052331,-603.30046624,0.00027397,3]
[343904829,1733019052341,-500.0,0.00027397,3]
[343904830,1733019052352,-500.0,0.00027397,3]
[343904831,1733019052363,-544.49,0.00027397,3]
[343904832,1733019052373,-641.96,0.00027397,3]
[343904833,1733019052382,-584.54197171,0.00027397,3]
[343904834,1733019052392,-500.0,0.00027397,3]
[343904835,1733019052403,-500.0,0.00027397,3]
[343904836,1733019052415,-495.35930112,0.00027397,3]
[343904837,1733019052426,-599.0,0.00027397,3]
[343904838,1733019052436,-500.0,0.00027397,3]
[343904839,1733019052447,-664.83,0.00027397,3]
[343904840,1733019052458,-395.77267669,0.00027397,3]
[343904841,1733019052471,-259.92747762,0.00027397,3]
[343904842,1733019052482,-951.57,0.00027397,3]
[343904843,1733019052494,-716.35,0.00027397,3]
[343904844,1733019052505,-500.0,0.00027397,3]
[343904845,1733019052515,-500.0,0.00027397,3]
[343904846,1733019052527,-917.94,0.00027397,3]
[343904847,1733019052538,-500.0,0.00027397,3]
[343904848,1733019052549,-500.0,0.00027397,3]
[343904849,1733019052561,-500.0,0.00027397,3]
[343904850,1733019052572,-500.0,0.00027397,3]
[343904851,1733019052583,-500.0,0.00027397,3]
[343904852,1733019052595,-500.0,0.00027397,3]
[343904853,1733019052606,-500.0,0.00027397,3]
[343904854,1733019052618,-1377.98,0.00027397,3]
[343904855,1733019052630,-500.0,0.00027397,3]
[343904856,1733019052642,-1292.72,0.00027397,3]
[343904857,1733019052652,-500.0,0.00027397,3]
[343904858,1733019052663,-1313.91,0.00027397,3]
[343904859,1733019052674,-500.0,0.00027397,3]
[343904860,1733019052685,-500.0,0.00027397,2]
[343904861,1733019052696,-1140.13,0.00027397,3]
[343904862,1733019052707,-500.0,0.00027397,3]
[343904863,1733019052717,-4591.27,0.00027397,60]
[343904864,1733019052728,-206.02299739,0.00027397,2]
[343904865,1733019052741,-151.62744155,0.00027453,2]
[343904866,1733019052751,-176.302447,0.00027478,2]
[343904867,1733019052762,-300.0,0.000275,2]
[343904868,1733019052774,-311.12483863,0.00027569,2]
[343904869,1733019052788,-925.0,0.00027606,15]
[343904870,1733019052798,-161.0,0.00027616,2]
[343904871,1733019052809,-500.0,0.00027671,3]
[343904872,1733019052820,-269.91868486,0.00027671,3]
[343904873,1733019052830,-829.63,0.00027671,3]
[343904874,1733019052840,-500.0,0.00027671,3]
[343904875,1733019052849,-500.0,0.00027671,3]
[343904876,1733019052861,-544.49,0.00027671,3]
[343904877,1733019052872,-641.96,0.00027671,3]
[343904878,1733019052881,-500.0,0.00027671,3]
[343904879,1733019052891,-510.74657388,0.00027671,3]
[343904880,1733019052901,-599.0,0.00027671,3]
[343904881,1733019052911,-500.0,0.00027671,3]
[343904882,1733019052922,-664.83,0.00027671,3]
[343904883,1733019052932,-951.57,0.00027671,3]
[343904884,1733019052942,-716.35,0.00027671,3]
[343904885,1733019052952,-500.0,0.00027671,3]
[343904886,1733019052962,-500.0,0.00027671,3]
[343904887,1733019052972,-917.94,0.00027671,3]
[343904888,1733019052982,-500.0,0.00027671,3]
[343904889,1733019052993,-500.0,0.00027671,3]
[343904890,1733019053003,-500.0,0.00027671,3]
[343904891,1733019053013,-500.0,0.00027671,3]
[343904892,1733019053024,-500.0,0.00027671,3]
[343904893,1733019053034,-500.0,0.00027671,3]
[343904894,1733019053044,-500.0,0.00027671,3]
[343904895,1733019053053,-500.0,0.00027671,3]
[343904896,1733019053063,-1377.98,0.00027671,3]
[343904897,1733019053073,-1292.72,0.00027671,3]
[343904898,1733019053082,-500.0,0.00027671,3]
[343904899,1733019053092,-1313.91,0.00027671,3]
[343904900,1733019053102,-500.0,0.00027671,3]
[343904901,1733019053112,-1140.13,0.00027671,3]
[343904902,1733019053123,-500.0,0.00027671,3]
[343904903,1733019053134,-151.0,0.000277,15]
[343904904,1733019053144,-176.302447,0.00027817,2]
[343904905,1733019053154,-319.53289324,0.00027878,2]
[343904906,1733019053163,-500.0,0.00027945,3]
[343904907,1733019053173,-829.63,0.00027945,3]
[343904908,1733019053183,-500.0,0.00027945,3]
[343904909,1733019053193,-500.0,0.00027945,3]
[343904910,1733019053203,-544.49,0.00027945,3]
[343904911,1733019053212,-641.96,0.00027945,3]
[343904912,1733019053222,-198.27687845,0.00027945,3]
[343904913,1733019053231,-599.0,0.00027945,3]
[343904914,1733019053242,-151.0,0.00027945,7]
[343904915,1733019053251,-500.0,0.00027945,3]
[343904916,1733019053261,-664.83,0.00027945,3]
[343904917,1733019053271,-951.57,0.00027945,3]
[343904918,1733019053281,-716.35,0.00027945,3]
[343904919,1733019053292,-500.0,0.00027945,3]
[343904920,1733019053371,-500.0,0.00027945,3]
[343904921,1733019053383,-917.94,0.00027945,3]
[343904922,1733019053394,-500.0,0.00027945,3]
[343904923,1733019053405,-500.0,0.00027945,3]
[343904924,1733019053415,-500.0,0.00027945,3]
[343904925,1733019053425,-166.36752008,0.00027945,3]
[343904926,1733019053435,-500.0,0.00027945,3]
[343904927,1733019053445,-500.0,0.00027945,3]
[343904928,1733019053455,-443.9015386,0.00027945,3]
[343904929,1733019053465,-500.0,0.00027945,3]
[343904930,1733019053476,-1377.98,0.00027945,3]
[343904931,1733019053485,-1292.72,0.00027945,3]
[343904932,1733019053495,-500.0,0.00027945,3]
[343904933,1733019053505,-1313.91,0.00027945,3]
[343904934,1733019053515,-500.0,0.00027945,3]
[343904935,1733019053525,-1140.13,0.00027945,3]
[343904936,1733019053535,-111.90083023,0.00027945,3]
[343904937,1733019053621,-500.0,0.00024657,3]
[343904938,1733019053631,-253.84182602,0.00025927,2]
[343904939,1733019053643,-388.09916977,0.00027945,3]
[343904940,1733019053653,-160.0,0.00027961,3]
[343904941,1733019053663,-176.302447,0.00028156,2]
[343904942,1733019053674,-157.24280639,0.00028219,3]
[343904943,1733019053685,-829.63,0.00028219,3]
[343904944,1733019053696,-500.0,0.00028219,3]
[343904945,1733019053712,-617.32382843,0.00028219,3]
[343904946,1733019053722,-544.49,0.00028219,3]
[343904947,1733019053733,-641.96,0.00028219,3]
[343904948,1733019053745,-599.0,0.00028219,3]
[343904949,1733019053756,-500.0,0.00028219,3]
[343904950,1733019053767,-664.83,0.00028219,3]
[343904951,1733019053780,-951.57,0.00028219,3]
[343904952,1733019053790,-716.35,0.00028219,3]
[343904953,1733019053800,-500.0,0.00028219,3]
[343904954,1733019053810,-500.0,0.00028219,3]
[343904955,1733019053823,-917.94,0.00028219,3]
[343904956,1733019053834,-500.0,0.00028219,3]
[343904957,1733019053844,-332.39123638,0.00028219,3]
[343904958,1733019053855,-500.0,0.00028219,3]
[343904959,1733019053867,-374.02868751,0.00028219,3]
[343904960,1733019053927,-1169.27083333,0.00024657,3]
[343904961,1733019053937,-1169.27083333,0.00024657,3]
[343904962,1733019053947,-3447.82,0.00025469,10]
[343904963,1733019053958,-44.35655094,0.00028219,3]
[343904964,1733019053968,-500.0,0.00028219,3]
[343904965,1733019053978,-500.0,0.00028219,3]
[343904966,1733019053988,-1377.98,0.00028219,3]
[343904967,1733019053998,-1292.72,0.00028219,3]
[343904968,1733019054008,-500.0,0.00028219,3]
[343904969,1733019054019,-1313.91,0.00028219,3]
[343904970,1733019054029,-500.0,0.00028219,3]
[343904971,1733019054039,-1140.13,0.00028219,3]
[343904972,1733019054048,-500.0,0.00028219,3]
[343904973,1733019054058,-239.847244,0.00028489,2]
[343904974,1733019054068,-829.63,0.00028493,3]
[343904975,1733019054078,-500.0,0.00028493,3]
[343904976,1733019054089,-544.49,0.00028493,3]
[343904977,1733019054098,-641.96,0.00028493,3]
[343904978,1733019054109,-599.0,0.00028493,3]
[343904979,1733019054118,-500.0,0.00028493,3]
[343904980,1733019054127,-664.83,0.00028493,3]
[343904981,1733019054137,-951.57,0.00028493,3]
[343904982,1733019054147,-716.35,0.00028493,3]
[343904983,1733019054156,-500.0,0.00028493,3]
[343904984,1733019054167,-353.3352659,0.00028493,3]
[343904985,1733019054176,-917.94,0.00028493,3]
[343904986,1733019054186,-500.0,0.00028493,3]
[343904987,1733019054195,-500.0,0.00028493,3]
[343904988,1733019054205,-500.0,0.00028493,3]
[343904989,1733019054215,-500.0,0.00028493,3]
[343904990,1733019054225,-1377.98,0.00028493,3]
[343904991,1733019054235,-1292.72,0.00028493,3]
[343904992,1733019054244,-209.4468625,0.00028493,3]
[343904993,1733019054254,-1313.91,0.00028493,3]
[343904994,1733019054264,-500.0,0.00028493,3]
[343904995,1733019054274,-1140.13,0.00028493,3]
[343904996,1733019054283,-500.0,0.00028493,3]
[343904997,1733019054294,-176.302447,0.00028495,2]
[343904998,1733019054304,-300.0,0.000285,2]
[343904999,1733019054314,-151.0,0.000286,12]
[343905000,1733019054324,-950.09,0.000286,31]
[343905001,1733019054335,-950.09,0.000286,31]
[343905002,1733019054344,-950.09,0.000286,31]
[343905003,1733019054354,-950.09,0.000286,31]
[343905004,1733019054364,-950.09,0.000286,31]
[343905005,1733019054374,-950.09,0.000286,31]
[343905006,1733019054384,-950.09,0.000286,31]
[343905007,1733019054394,-950.09,0.000286,31]
[343905008,1733019054404,-950.09,0.000286,31]
[343905009,1733019054415,-950.09,0.000286,31]
[343905010,1733019054427,-950.09,0.000286,31]
[343905011,1733019054437,-950.09,0.000286,31]
[343905012,1733019054448,-151.0,0.00028767,7]
[343905013,1733019054476,-829.63,0.00028767,3]
[343905014,1733019054487,-151.0,0.00028767,7]
[343905015,1733019054498,-537.35572424,0.00028767,3]
[343905016,1733019054508,-544.49,0.00028767,3]
[343905017,1733019054522,-641.96,0.00028767,3]
[343905018,1733019054533,-151.0,0.00028767,7]
[343905019,1733019054545,-151.0,0.00028767,7]
[343905020,1733019054556,-599.0,0.00028767,3]
[343905021,1733019054567,-500.0,0.00028767,3]
[343905022,1733019054578,-664.83,0.00028767,3]
[343905023,1733019054589,-951.57,0.00028767,3]
[343905024,1733019054600,-716.35,0.00028767,3]
[343905025,1733019054610,-500.0,0.00028767,3]
[343905026,1733019054622,-917.94,0.00028767,3]
[343905027,1733019054632,-500.0,0.00028767,3]
[343905028,1733019054642,-500.0,0.00028767,3]
[343905029,1733019054651,-500.0,0.00028767,3]
[343905030,1733019054661,-500.0,0.00028767,3]
[343905031,1733019054670,-1377.98,0.00028767,3]
[343905032,1733019054680,-1292.72,0.00028767,3]
[343905033,1733019054690,-1313.91,0.00028767,3]
[343905034,1733019054699,-500.0,0.00028767,3]
[343905035,1733019054707,-500.0,0.00028767,4]
[343905036,1733019054715,-1140.13,0.00028767,3]
[343905037,1733019054724,-500.0,0.00028767,3]
[343905038,1733019054734,-151.62744155,0.00028949,2]
[343905039,1733019054744,-1442.18882698,0.0002898,17]
[343905040,1733019054755,-161.0,0.00028997,2]
[343905041,1733019054831,-862.38645635,0.00029,2]
[343905042,1733019054843,-166.526446,0.00029,7]
[343905043,1733019054853,-950.09,0.00029,31]
[343905044,1733019054865,-950.09,0.00029,31]
[343905045,1733019054875,-950.09,0.00029,31]
[343905046,1733019054885,-950.09,0.00029,31]
[343905047,1733019054896,-196.14542137,0.00029,31]
[343905048,1733019054910,-753.94457863,0.00029,31]
[343905049,1733019054921,-950.09,0.00029,31]
[343905050,1733019054932,-950.09,0.00029,31]
[343905051,1733019054942,-950.09,0.00029,31]
[343905052,1733019054953,-950.09,0.00029,31]
[343905053,1733019054963,-950.09,0.00029,31]
[343905054,1733019054973,-950.09,0.00029,31]
[343905055,1733019054998,-950.09,0.00029,31]
[343905056,1733019055009,-950.09,0.00029,31]
[343905057,1733019055019,-950.09,0.00029,31]
[343905058,1733019055031,-950.09,0.00029,31]
[343905059,1733019055041,-950.09,0.00029,31]
[343905060,1733019055051,-950.09,0.00029,31]
[343905061,1733019055061,-950.09,0.00029,31]
[343905062,1733019055071,-950.09,0.00029,31]
[343905063,1733019055081,-950.09,0.00029,31]
[343905064,1733019055091,-950.09,0.00029,31]
[343905065,1733019055101,-950.09,0.00029,31]
[343905066,1733019055111,-950.09,0.00029,31]
[343905067,1733019055121,-950.09,0.00029,31]
[343905068,1733019055131,-151.0,0.00029034,7]
[343905069,1733019055141,-829.63,0.00029041,3]
[343905070,1733019055151,-544.49,0.00029041,3]
[343905071,1733019055161,-641.96,0.00029041,3]
[343905072,1733019055171,-599.0,0.00029041,3]
[343905073,1733019055181,-429.28,0.00029041,3]
[343905074,1733019055192,-664.83,0.00029041,3]
[343905075,1733019055202,-951.57,0.00029041,3]
[343905076,1733019055213,-716.35,0.00029041,3]
[343905077,1733019055223,-500.0,0.00029041,3]
[343905078,1733019055234,-917.94,0.00029041,3]
[343905079,1733019055244,-500.0,0.00029041,3]
[343905080,1733019055254,-500.0,0.00029041,3]
[343905081,1733019055265,-500.0,0.00029041,3]
[343905082,1733019055276,-500.0,0.00029041,3]
[343905083,1733019055287,-1377.98,0.00029041,3]
[343905084,1733019055297,-1292.72,0.00029041,3]
[343905085,1733019055307,-1313.91,0.00029041,3]
[343905086,1733019055317,-500.0,0.00029041,3]
[343905087,1733019055327,-1140.13,0.00029041,3]
[343905088,1733019055336,-283.40758572,0.00029041,3]
[343905089,1733019055347,-1272.82475022,0.00029041,120]
[343905090,1733019055357,-287.0,0.0002918,120]
[343905091,1733019055367,-287.0,0.0002919,120]
[343905092,1733019055377,-778.71176019,0.000292,2]
[343905093,1733019055387,-287.0,0.000292,120]